lending/lending_fUSD_20250808
["ID","MTS","AMOUNT","RATE_DAILY","PERIOD"]
[377986267,1754650239488,-400.0,0.00018767,2]
[377986268,1754650239498,-915.0,0.00018767,2]
[377986269,1754650239507,-400.0,0.00018767,2]
[377986270,1754650239516,-400.0,0.00018767,2]
[377986271,1754650239526,-492.09,0.00018767,2]
[377986272,1754650239535,-400.0,0.00018767,2]
[377986273,1754650239544,-984.12,0.00018767,2]
[377986274,1754650239554,-504.18,0.00018767,2]
[377986275,1754650239564,-708.89,0.00018767,2]
[377986276,1754650239574,-400.0,0.00018767,2]
[377986277,1754650239584,-400.0,0.00018767,2]
[377986278,1754650239593,-778.38,0.00018767,2]
[377986279,1754650239603,-400.0,0.00018767,2]
[377986280,1754650239613,-1205.95,0.00018767,2]
[377986281,1754650239622,-1376.16,0.00018767,2]
[377986282,1754650239631,-400.0,0.00018767,2]
[377986283,1754650239640,-617.05,0.00018767,2]
[377986284,1754650239649,-874.54,0.00018767,2]
[377986285,1754650239659,-400.0,0.00018767,2]
[377986286,1754650239668,-557.65,0.00018767,2]
[377986287,1754650239677,-400.0,0.00018767,2]
[377986288,1754650239686,-400.0,0.00018767,2]
[377986289,1754650239695,-400.0,0.00018767,2]
[377986290,1754650239704,-400.0,0.00018767,2]
[377986291,1754650239713,-400.0,0.00018767,2]
[377986292,1754650239724,-400.0,0.00018767,2]
[377986293,1754650239734,-1159.68,0.00018767,2]
[377986294,1754650239743,-1003.78,0.00018767,2]
[377986295,1754650239753,-928.55,0.00018767,2]
[377986296,1754650239762,-902.49,0.00018767,2]
[377986297,1754650239772,-1097.74,0.00018767,2]
[377986298,1754650239781,-400.0,0.00018767,2]
[377986299,1754650239791,-694.72,0.00018767,2]
[377986300,1754650239801,-771.62,0.00018767,2]
[377986301,1754650239811,-720.41,0.00018767,2]
[377986302,1754650239820,-400.0,0.00018767,2]
[377986303,1754650239829,-562.2,0.00018767,2]
[377986304,1754650239838,-400.0,0.00018767,2]
[377986305,1754650239847,-400.0,0.00018767,2]
[377986306,1754650239857,-400.0,0.00018767,2]
[377986307,1754650239867,-400.0,0.00018767,2]
[377986308,1754650239876,-623.95,0.00018767,2]
[377986309,1754650239885,-743.6,0.00018767,2]
[377986310,1754650239895,-553.94,0.00018767,2]
[377986311,1754650239905,-400.0,0.00018767,2]
[377986312,1754650239919,-400.0,0.00018767,2]
[377986313,1754650239928,-427.14,0.00018767,2]
[377986314,1754650239938,-736.59,0.00018767,2]
[377986315,1754650239947,-400.0,0.00018767,2]
[377986316,1754650239958,-400.0,0.00018767,2]
[377986317,1754650239967,-787.87,0.00018767,2]
[377986318,1754650239977,-1027.2,0.00018767,2]
[377986319,1754650239986,-1305.72,0.00018767,2]
[377986320,1754650239995,-400.0,0.00018767,2]
[377986321,1754650240005,-479.75,0.00018767,2]
[377986322,1754650240013,-400.0,0.00018767,2]
[377986323,1754650240022,-400.0,0.00018767,2]
[377986324,1754650240031,-730.15,0.00018767,2]
[377986325,1754650240045,-903.34,0.00018767,2]
[377986326,1754650240054,-724.04,0.00018767,2]
[377986328,1754650240063,-642.34,0.00018767,2]
[377986329,1754650240074,-400.0,0.00018767,2]
[377986330,1754650240084,-567.38,0.00018767,2]
[377986331,1754650240094,-400.0,0.00018767,2]
[377986332,1754650240104,-400.0,0.00018767,2]
[377986333,1754650240115,-844.89,0.00018767,2]
[377986334,1754650240125,-400.0,0.00018767,2]
[377986335,1754650240137,-1755.98,0.00018767,2]
[377986336,1754650240146,-400.0,0.00018767,2]
[377986337,1754650240155,-400.0,0.00018767,2]
[377986338,1754650240167,-400.0,0.00018767,2]
[377986339,1754650240176,-1070.48,0.00018767,2]
[377986340,1754650240186,-484.7,0.00018767,2]
[377986341,1754650240195,-921.71,0.00018767,2]
[377986342,1754650240205,-400.0,0.00018767,2]
[377986343,1754650240214,-1082.92,0.00018767,2]
[377986344,1754650240223,-400.0,0.00018767,2]
[377986345,1754650240233,-542.62526655,0.00018767,2]
[377986346,1754650240242,-463.45,0.00018767,2]
[377986347,1754650240251,-477.97,0.00018767,2]
[377986348,1754650240260,-424.34225566,0.00018767,2]
[377986349,1754650240270,-400.0,0.00018767,2]
[377986350,1754650240279,-400.0,0.00018767,2]
[377986351,1754650240288,-400.0,0.00018767,2]
[377986352,1754650240297,-865.1,0.00018767,2]
[377986353,1754650240307,-1068.23,0.00018767,2]
[377986354,1754650240316,-494.45,0.00018767,2]
[377986355,1754650240326,-400.0,0.00018767,2]
[377986356,1754650240335,-847.37,0.00018767,2]
[377986357,1754650240345,-400.0,0.00018767,2]
[377986358,1754650240354,-400.0,0.00018767,2]
[377986359,1754650240364,-513.76,0.00018767,2]
[377986360,1754650240373,-2124.81,0.00018767,2]
[377986361,1754650240383,-1208.7,0.00018767,2]
[377986362,1754650240392,-255.47958795,0.00018767,2]
[377986363,1754650240401,-898.15,0.00018767,2]
[377986364,1754650240410,-400.0,0.00018767,2]
[377986365,1754650240419,-431.82,0.00018767,2]
[377986366,1754650240428,-596.56,0.00018767,2]
[377986367,1754650240437,-412.38,0.00018767,2]
[377986368,1754650240447,-1041.1,0.00018767,2]
[377986369,1754650240456,-702.04,0.00018767,2]
[377986370,1754650240465,-1193.82,0.00018767,2]
[377986371,1754650240475,-400.0,0.00018767,2]
[377986372,1754650240484,-400.0,0.00018767,2]
[377986373,1754650240494,-418.54,0.00018767,2]
[377986374,1754650240503,-671.01,0.00018767,2]
[377986375,1754650240512,-1240.97,0.00018767,2]
[377986376,1754650240521,-1307.4,0.00018767,2]
[377986377,1754650240531,-400.0,0.00018767,2]
[377986378,1754650240540,-1187.77,0.00018767,2]
[377986379,1754650240550,-693.39,0.00018767,2]
[377986380,1754650240559,-765.33,0.00018767,2]
[377986381,1754650240568,-400.0,0.00018767,2]
[377986382,1754650240578,-400.0,0.00018767,2]
[377986383,1754650240587,-400.0,0.00018767,2]
[377986384,1754650240597,-400.0,0.00018767,2]
[377986385,1754650240607,-901.74,0.00018767,2]
[377986386,1754650240616,-400.0,0.00018767,2]
[377986387,1754650240625,-859.31,0.00018767,2]
[377986388,1754650240635,-413.93,0.00018767,2]
[377986389,1754650240645,-400.0,0.00018767,2]
[377986390,1754650240654,-1338.83,0.00018767,2]
[377986391,1754650240663,-400.0,0.00018767,2]
[377986392,1754650240674,-837.7,0.00018767,2]
[377986393,1754650240683,-400.0,0.00018767,2]
[377986394,1754650240692,-1450.78,0.00018767,2]
[377986395,1754650240702,-715.24,0.00018767,2]
[377986396,1754650240711,-611.59,0.00018767,2]
[377986397,1754650240720,-400.0,0.00018767,2]
[377986398,1754650240729,-955.11,0.00018767,2]
[377986399,1754650240738,-412.4,0.00018767,2]
[377986400,1754650240747,-400.0,0.00018767,2]
[377986401,1754650240756,-596.29,0.00018767,2]
[377986402,1754650240765,-400.0,0.00018767,2]
[377986403,1754650240775,-701.53,0.00018767,2]
[377986404,1754650240784,-503.93741912,0.00018767,2]
[377986405,1754650240795,-544.06,0.00018767,2]
[377986406,1754650240804,-400.0,0.00018767,2]
[377986407,1754650240814,-400.0,0.00018767,2]
[377986408,1754650240823,-982.39,0.00018767,2]
[377986409,1754650240832,-701.59,0.00018767,2]
[377986410,1754650240841,-1333.36,0.00018767,2]
[377986411,1754650240850,-400.0,0.00018767,2]
[377986412,1754650240860,-840.17,0.00018767,2]
[377986413,1754650240869,-688.73,0.00018767,2]
[377986414,1754650240878,-1110.39,0.00018767,2]
[377986415,1754650240888,-400.79987377,0.00018767,2]
[377986416,1754650240897,-665.23,0.00018767,2]
[377986417,1754650240906,-1407.2,0.00018767,2]
[377986418,1754650240916,-400.0,0.00018767,2]
[377986419,1754650240929,-400.0,0.00018767,2]
[377986420,1754650240938,-400.0,0.00018767,2]
[377986421,1754650240947,-661.96,0.00018767,2]
[377986422,1754650240956,-865.85,0.00018767,2]
[377986423,1754650240967,-400.0,0.00018767,2]
[377986424,1754650240976,-720.83,0.00018767,2]
[377986425,1754650240986,-400.0,0.00018767,2]
[377986426,1754650240996,-400.0,0.00018767,2]
[377986427,1754650241007,-400.0,0.00018767,2]
[377986428,1754650241016,-400.0,0.00018767,2]
[377986429,1754650241026,-400.0,0.00018767,2]
[377986430,1754650241035,-720.47,0.00018767,2]
[377986431,1754650241044,-934.67,0.00018767,2]
[377986432,1754650241054,-814.99,0.00018767,2]
[377986433,1754650241063,-400.0,0.00018767,2]
[377986434,1754650241072,-1211.8,0.00018767,2]
[377986435,1754650241083,-171.57308476,0.00018767,2]
[377986436,1754650241092,-400.0,0.00018767,2]
[377986437,1754650241102,-400.0,0.00018767,2]
[377986438,1754650241111,-1542.21,0.00018767,2]
[377986439,1754650241121,-400.0,0.00018767,2]
[377986440,1754650241130,-937.14,0.00018767,2]
[377986441,1754650241139,-740.29,0.00018767,2]
[377986442,1754650241149,-644.05,0.00018767,2]
[377986443,1754650241158,-400.0,0.00018767,2]
[377986444,1754650241168,-447.20641544,0.00018767,2]
[377986445,1754650241177,-404.23,0.00018767,2]
[377986446,1754650241187,-400.0,0.00018767,2]
[377986447,1754650241196,-473.04,0.00018767,2]
[377986448,1754650241206,-400.0,0.00018767,2]
[377986449,1754650241215,-400.0,0.00018767,2]
[377986450,1754650241226,-1220.93,0.00018767,2]
[377986451,1754650241236,-400.0,0.00018767,2]
[377986452,1754650241246,-407.47,0.00018767,2]
[377986453,1754650241255,-400.0,0.00018767,2]
[377986454,1754650241265,-420.9,0.00018767,2]
[377986455,1754650241274,-646.74,0.00018767,2]
[377986456,1754650241283,-400.0,0.00018767,2]
[377986457,1754650241293,-1435.74,0.00018767,2]
[377986458,1754650241303,-504.59,0.00018767,2]
[377986459,1754650241312,-784.16,0.00018767,2]
[377986460,1754650241322,-696.52,0.00018767,2]
[377986461,1754650241333,-400.0,0.00018767,2]
[377986462,1754650241342,-1475.98,0.00018767,2]
[377986463,1754650241351,-1102.88,0.00018767,2]
[377986464,1754650241361,-727.44,0.00018767,2]
[377986465,1754650241371,-400.0,0.00018767,2]
[377986466,1754650241380,-790.33,0.00018767,2]
[377986467,1754650241389,-400.0,0.00018767,2]
[377986468,1754650241399,-400.0,0.00018767,2]
[377986469,1754650241408,-521.95,0.00018767,2]
[377986470,1754650241417,-1284.83,0.00018767,2]
[377986471,1754650241426,-422.34,0.00018767,2]
[377986472,1754650241436,-400.0,0.00018767,2]
[377986473,1754650241445,-368.56940195,0.00018767,2]
[377986474,1754650241454,-446.96,0.00018767,2]
[377986475,1754650241463,-919.64,0.00018767,2]
[377986476,1754650241472,-823.4,0.00018767,2]
[377986477,1754650241482,-815.93,0.00018767,2]
[377986478,1754650241492,-867.8,0.00018767,2]
[377986479,1754650241501,-400.0,0.00018767,2]
[377986480,1754650241510,-400.0,0.00018767,2]
[377986481,1754650241520,-1100.06,0.00018767,2]
[377986482,1754650241529,-400.0,0.00018767,2]
[377986483,1754650241539,-400.0,0.00018767,2]
[377986484,1754650241548,-400.0,0.00018767,2]
[377986485,1754650241557,-400.0,0.00018767,2]
[377986486,1754650241566,-420.51,0.00018767,2]
[377986487,1754650241575,-263.20669642,0.00018767,2]
[377986488,1754650241586,-742.08,0.00018767,2]
[377986489,1754650241595,-400.0,0.00018767,2]
[377986490,1754650241604,-400.0,0.00018767,2]
[377986491,1754650241613,-672.61,0.00018767,2]
[377986492,1754650241622,-400.0,0.00018767,2]
[377986493,1754650241632,-622.22,0.00018767,2]
[377986494,1754650241641,-1118.29,0.00018767,2]
[377986495,1754650241650,-609.93,0.00018767,2]
[377986496,1754650241659,-650.66,0.00018767,2]
[377986497,1754650241668,-400.0,0.00018767,2]
[377986498,1754650241677,-400.0,0.00018767,2]
[377986499,1754650241687,-400.0,0.00018767,2]
[377986500,1754650241697,-400.0,0.00018767,2]
[377986501,1754650241706,-400.0,0.00018767,2]
[377986502,1754650241715,-400.0,0.00018767,2]
[377986503,1754650241724,-400.0,0.00018767,2]
[377986504,1754650241734,-400.0,0.00018767,2]
[377986505,1754650241743,-611.98,0.00018767,2]
[377986506,1754650241752,-400.0,0.00018767,2]
[377986507,1754650241762,-400.0,0.00018767,2]
[377986508,1754650241771,-400.0,0.00018767,2]
[377986509,1754650241781,-621.87,0.00018767,2]
[377986510,1754650241790,-794.38,0.00018767,2]
[377986511,1754650241800,-572.36,0.00018767,2]
[377986512,1754650241810,-483.92,0.00018767,2]
[377986513,1754650241820,-678.69,0.00018767,2]
[377986514,1754650241830,-400.0,0.00018767,2]
[377986515,1754650241841,-400.0,0.00018767,2]
[377986516,1754650241851,-1654.28,0.00018767,2]
[377986517,1754650241860,-558.1,0.00018767,2]
[377986518,1754650241870,-825.22,0.00018767,2]
[377986519,1754650241879,-400.0,0.00018767,2]
[377986520,1754650241889,-575.82,0.00018767,2]
[377986521,1754650241899,-400.0,0.00018767,2]
[377986522,1754650241908,-400.0,0.00018767,2]
[377986523,1754650241920,-400.0,0.00018767,2]
[377986524,1754650241930,-400.0,0.00018767,2]
[377986525,1754650241940,-361.6008372,0.00018767,2]
[377986526,1754650241950,-664.15,0.00018767,2]
[377986527,1754650241959,-400.0,0.00018767,2]
[377986528,1754650241968,-1018.18,0.00018767,2]
[377986529,1754650241977,-463.1,0.00018767,2]
[377986530,1754650241987,-1303.12,0.00018767,2]
[377986531,1754650241996,-777.5,0.00018767,2]
[377986532,1754650242005,-736.84,0.00018767,2]
[377986533,1754650242014,-740.78,0.00018767,2]
[377986534,1754650242023,-1081.42,0.00018767,2]
[377986535,1754650242033,-622.34,0.00018767,2]
[377986536,1754650242042,-400.0,0.00018767,2]
[377986537,1754650242051,-400.0,0.00018767,2]
[377986538,1754650242060,-1043.74,0.00018767,2]
[377986539,1754650242069,-488.38,0.00018767,2]
[377986540,1754650242079,-444.9,0.00018767,2]
[377986541,1754650242091,-636.23,0.00018767,2]
[377986542,1754650242100,-1047.49,0.00018767,2]
[377986543,1754650242109,-400.0,0.00018767,2]
[377986544,1754650242119,-535.62,0.00018767,2]
[377986545,1754650242128,-467.24,0.00018767,2]
[377986546,1754650242137,-900.2,0.00018767,2]
[377986547,1754650242147,-1961.12,0.00018767,2]
[377986548,1754650242156,-400.0,0.00018767,2]
[377986549,1754650242166,-801.59,0.00018767,2]
[377986550,1754650242175,-1464.66,0.00018767,2]
[377986551,1754650242185,-756.32,0.00018767,2]
[377986552,1754650242195,-986.75,0.00018767,2]
[377986553,1754650242204,-940.2,0.00018767,2]
[377986554,1754650242213,-707.97,0.00018767,2]
[377986555,1754650242223,-400.0,0.00018767,2]
[377986556,1754650242232,-545.99,0.00018767,2]
[377986557,1754650242241,-882.36,0.00018767,2]
[377986558,1754650242250,-842.69,0.00018767,2]
[377986559,1754650242259,-481.89,0.00018767,2]
[377986560,1754650242269,-400.0,0.00018767,2]
[377986561,1754650242278,-400.0,0.00018767,2]
[377986562,1754650242287,-1080.65,0.00018767,2]
[377986563,1754650242296,-400.0,0.00018767,2]
[377986564,1754650242305,-400.0,0.00018767,2]
[377986565,1754650242320,-952.27,0.00018767,2]
[377986566,1754650242330,-949.93,0.00018767,2]
[377986567,1754650242340,-400.0,0.00018767,2]
[377986568,1754650242350,-400.0,0.00018767,2]
[377986569,1754650242359,-400.0,0.00018767,2]
[377986570,1754650242370,-400.0,0.00018767,2]
[377986571,1754650242379,-400.0,0.00018767,2]
[377986572,1754650242390,-646.4,0.00018767,2]
[377986573,1754650242400,-400.0,0.00018767,2]
[377986574,1754650242410,-400.0,0.00018767,2]
[377986575,1754650242421,-1427.87,0.00018767,2]
[377986576,1754650242431,-402.6435556,0.00018767,2]
[377986577,1754650242440,-400.0,0.00018767,2]
[377986578,1754650242450,-400.0,0.00018767,2]
[377986579,1754650242460,-446.61120885,0.00018767,2]
[377986580,1754650242469,-400.0,0.00018767,2]
[377986581,1754650242479,-702.25,0.00018767,2]
[377986582,1754650242488,-1238.29,0.00018767,2]
[377986583,1754650242498,-400.0,0.00018767,2]
[377986584,1754650242507,-862.6,0.00018767,2]
[377986586,1754650242517,-1510.33,0.00018767,2]
[377986588,1754650242527,-613.11,0.00018767,2]
[377986590,1754650242537,-400.0,0.00018767,2]
[377986592,1754650242546,-400.0,0.00018767,2]
[377986593,1754650242555,-400.0,0.00018767,2]
[377986594,1754650242565,-893.54,0.00018767,2]
[377986595,1754650242575,-438.65,0.00018767,2]
[377986596,1754650242586,-400.0,0.00018767,2]
[377986597,1754650242595,-796.31,0.00018767,2]
[377986598,1754650242605,-400.0,0.00018767,2]
[377986599,1754650242615,-400.0,0.00018767,2]
[377986600,1754650242627,-400.0,0.00018767,2]
[377986601,1754650242636,-889.71,0.00018767,2]
[377986602,1754650242646,-401.3907939,0.00018767,2]
[377986603,1754650242656,-400.0,0.00018767,2]
[377986604,1754650242666,-400.0,0.00018767,2]
[377986605,1754650242675,-401.81243534,0.00018767,2]
[377986606,1754650242685,-515.02382223,0.00018767,2]
[377986607,1754650242694,-400.0,0.00018767,2]
[377986608,1754650242704,-400.0,0.00018767,2]
[377986609,1754650242715,-400.0,0.00018767,2]
[377986610,1754650242725,-400.0,0.00018767,2]
[377986611,1754650242734,-686.07,0.00018767,2]
[377986612,1754650242744,-400.0,0.00018767,2]
[377986613,1754650242754,-1019.29,0.00018767,2]
[377986614,1754650242764,-400.0,0.00018767,2]
[377986615,1754650242774,-712.55,0.00018767,2]
[377986616,1754650242783,-443.29,0.00018767,2]
[377986617,1754650242795,-400.0,0.00018767,2]
[377986618,1754650242805,-400.0,0.00018767,2]
[377986619,1754650242814,-400.0,0.00018767,2]
[377986620,1754650242824,-439.54,0.00018767,2]
[377986621,1754650242837,-400.0,0.00018767,2]
[377986622,1754650242850,-950.93,0.00018767,2]
[377986623,1754650242860,-400.0,0.00018767,2]
[377986624,1754650242870,-400.0,0.00018767,2]
[377986625,1754650242880,-958.96,0.00018767,2]
[377986626,1754650242889,-400.0,0.00018767,2]
[377986627,1754650242900,-400.0,0.00018767,2]
[377986628,1754650242910,-287.10158323,0.00018767,2]
[377986629,1754650242923,-803.37,0.00018767,2]
[377986630,1754650242932,-912.49,0.00018767,2]
[377986631,1754650242943,-731.12,0.00018767,2]
[377986632,1754650242952,-400.0,0.00018767,2]
[377986633,1754650242963,-400.0,0.00018767,2]
[377986634,1754650242972,-236.47113367,0.00018767,2]
[377986635,1754650242982,-1260.18,0.00018767,2]
[377986636,1754650242992,-920.69,0.00018767,2]
[377986637,1754650243003,-400.0,0.00018767,2]
[377986638,1754650243015,-431.26,0.00018767,2]
[377986639,1754650243024,-434.56,0.00018767,2]
[377986640,1754650243034,-400.0,0.00018767,2]
[377986641,1754650243043,-400.0,0.00018767,2]
[377986642,1754650243053,-430.8,0.00018767,2]
[377986643,1754650243062,-417.41,0.00018767,2]
[377986644,1754650243072,-1403.04,0.00018767,2]
[377986645,1754650243081,-400.0,0.00018767,2]
[377986646,1754650243091,-678.4,0.00018767,2]
[377986647,1754650243101,-1498.43,0.00018767,2]
[377986648,1754650243111,-400.0,0.00018767,2]
[377986649,1754650243120,-843.06,0.00018767,2]
[377986650,1754650243130,-813.24,0.00018767,2]
[377986651,1754650243140,-400.0,0.00018767,2]
[377986652,1754650243150,-958.15,0.00018767,2]
[377986653,1754650243160,-1144.34,0.00018767,2]
[377986654,1754650243171,-400.0,0.00018767,2]
[377986655,1754650243181,-400.0,0.00018767,2]
[377986656,1754650243191,-400.0,0.00018767,2]
[377986657,1754650243201,-400.0,0.00018767,2]
[377986658,1754650243212,-450.78872624,0.00018767,2]
[377986659,1754650243222,-400.0,0.00018767,2]
[377986660,1754650243232,-969.18,0.00018767,2]
[377986661,1754650243242,-1660.98,0.00018767,2]
[377986662,1754650243253,-400.0,0.00018767,2]
[377986663,1754650243264,-1023.72,0.00018767,2]
[377986664,1754650243274,-400.0,0.00018767,2]
[377986665,1754650243284,-1146.21,0.00018767,2]
[377986666,1754650243294,-400.0,0.00018767,2]
[377986667,1754650243305,-400.0,0.00018767,2]
[377986668,1754650243315,-1119.98,0.00018767,2]
[377986669,1754650243325,-919.06,0.00018767,2]
[377986670,1754650243336,-745.37,0.00018767,2]
[377986671,1754650243346,-495.9,0.00018767,2]
[377986672,1754650243356,-400.0,0.00018767,2]
[377986673,1754650243366,-500.0,0.00018767,2]
[377986674,1754650243376,-1335.08,0.00018767,2]
[377986675,1754650243387,-429.05,0.00018767,2]
[377986676,1754650243397,-825.18,0.00018767,2]
[377986677,1754650243408,-400.0,0.00018767,2]
[377986678,1754650243418,-400.0,0.00018767,2]
[377986679,1754650243428,-852.59,0.00018767,2]
[377986680,1754650243438,-1278.86,0.00018767,2]
[377986681,1754650243447,-1574.71,0.00018767,2]
[377986682,1754650243458,-400.0,0.00018767,2]
[377986683,1754650243467,-631.77,0.00018767,2]
[377986684,1754650243477,-400.0,0.00018767,2]
[377986685,1754650243487,-400.0,0.00018767,2]
[377986686,1754650243497,-774.67,0.00018767,2]
[377986687,1754650243507,-703.53,0.00018767,2]
[377986688,1754650243518,-1126.34,0.00018767,2]
[377986689,1754650243528,-370.08548191,0.00018768,2]
[377986690,1754650243538,-400.0,0.00018768,2]
[377986691,1754650243548,-500.0,0.00018768,2]
[377986692,1754650243557,-400.0,0.00018768,2]
[377986693,1754650243567,-400.0,0.00018768,2]
[377986694,1754650243577,-584.4,0.00018768,2]
[377986695,1754650243587,-480.76,0.00018768,2]
[377986696,1754650243596,-468.55,0.00018768,2]
[377986697,1754650243607,-981.84,0.00018768,2]
[377986698,1754650243616,-1041.53,0.00018768,2]
[377986699,1754650243626,-400.0,0.00018768,2]
[377986700,1754650243636,-1320.37,0.00018768,2]
[377986701,1754650243645,-623.8,0.00018768,2]
[377986702,1754650243655,-909.59,0.00018768,2]
[377986703,1754650243665,-400.0,0.00018768,2]
[377986704,1754650243674,-3061.08,0.00018768,2]
[377986705,1754650243683,-1850.79,0.00018768,2]
[377986706,1754650243693,-986.92,0.00018768,2]
[377986707,1754650243703,-1431.24,0.00018768,2]
[377986708,1754650243712,-649.24,0.00018768,2]
[377986709,1754650243722,-975.32,0.00018768,2]
[377986710,1754650243732,-1386.53,0.00018768,2]
[377986711,1754650243742,-400.0,0.00018768,2]
[377986712,1754650243752,-973.24,0.00018768,2]
[377986713,1754650243762,-1222.21,0.00018768,2]
[377986714,1754650243772,-1016.57,0.00018768,2]
[377986715,1754650243782,-1914.7,0.00018768,2]
[377986716,1754650243792,-673.53,0.00018768,2]
[377986717,1754650243802,-1490.47,0.00018768,2]
[377986718,1754650243812,-1388.86,0.00018768,2]
[377986719,1754650243822,-1293.3,0.00018768,2]
[377986720,1754650243833,-1267.98,0.00018768,2]
[377986721,1754650243843,-797.53,0.00018768,2]
[377986722,1754650243852,-1052.18,0.00018768,2]
[377986723,1754650243863,-1177.83,0.00018768,2]
[377986724,1754650243873,-575.59,0.00018768,2]
[377986725,1754650243883,-1029.18,0.00018768,2]
[377986726,1754650243893,-1219.01,0.00018768,2]
[377986727,1754650243904,-400.0,0.00018768,2]
[377986728,1754650243914,-1000.33,0.00018768,2]
[377986729,1754650243928,-841.5,0.00018768,2]
[377986730,1754650243938,-3563.3,0.00018768,2]
[377986731,1754650243948,-808.32,0.00018768,2]
[377986732,1754650243958,-786.41,0.00018768,2]
[377986733,1754650243968,-1518.59,0.00018768,2]
[377986734,1754650243978,-1439.4,0.00018768,2]
[377986735,1754650243988,-891.22,0.00018768,2]
[377986736,1754650243998,-512.78,0.00018768,2]
[377986737,1754650244008,-531.98,0.00018768,2]
[377986738,1754650244018,-500.0,0.00018768,2]
[377986739,1754650244028,-811.8,0.00018768,2]
[377986740,1754650244038,-456.16,0.00018768,2]
[377986741,1754650244048,-644.91,0.00018768,2]
[377986742,1754650244058,-763.37,0.00018768,2]
[377986743,1754650244068,-400.0,0.00018768,2]
[377986744,1754650244078,-2073.95,0.00018768,2]
[377986745,1754650244087,-1123.33,0.00018768,2]
[377986746,1754650244097,-915.98,0.00018768,2]
[377986747,1754650244107,-1384.91,0.00018768,2]
[377986748,1754650244117,-911.72,0.00018768,2]
[377986749,1754650244126,-1527.51,0.00018768,2]
[377986750,1754650244136,-943.45,0.00018768,2]
[377986751,1754650244146,-400.0,0.00018768,2]
[377986752,1754650244156,-1406.51,0.00018768,2]
[377986753,1754650244165,-615.23,0.00018768,2]
[377986754,1754650244175,-404.04,0.00018768,2]
[377986755,1754650244185,-500.0,0.00018768,2]
[377986756,1754650244195,-400.0,0.00018768,2]
[377986757,1754650244205,-486.13,0.00018768,2]
[377986758,1754650244215,-1068.55,0.00018768,2]
[377986759,1754650244225,-452.5,0.00018768,2]
[377986760,1754650244235,-3766.71,0.00018768,2]
[377986761,1754650244245,-150.0,0.0001877,2]
[377986762,1754650244254,-577.63190117,0.00018771,2]
[377986763,1754650244264,-500.0,0.00018773,2]
[377986764,1754650244274,-500.0,0.00018773,2]
[377986765,1754650244284,-150.0,0.00018778,2]
[377986766,1754650244294,-150.0,0.00018778,2]
[377986767,1754650244304,-500.0,0.00018778,2]
[377986768,1754650244314,-430.0,0.00018778,2]
[377986769,1754650244324,-150.0,0.00018778,2]
[377986770,1754650244334,-150.0,0.0001878,2]
[377986771,1754650244344,-150.0,0.0001878,2]